Cogmind - Beta 17 @@@ ROGUE MODE // 2026.06.26 @ 08:17:37 Player: star Result: Self-destructed Performance ------------- Evolutions (0) 0 Regions Visited (4) 800 Robots Destroyed (7) 35 Value Destroyed (162) 162 Prototype IDs (0) 0 Alien Tech Used (0) 0 Bonus (14) 14 TOTAL SCORE: 1011 Bonus ------- Follower Combat Kills 14 Cogmind --------- Core Integrity 191/250 Matter 260/300 Energy 250/250 System Corruption 2% Temperature Cool (0) Movement Rolling (80) Location -9/Mines Parts ------- > --- POWER (1) -------- Ion Engine > --- PROPULSION (2) --- Wheel Wheel > --- UTILITY (2) ------ Small Storage Unit Improved Terrain Scanner > --- WEAPON (2) ------- EM Pulse Gun EM Pulse Gun > --- INVENTORY (8) ---- Wheel Wheel Large Matter Pod (150) EM Pulse Gun EM Pulse Gun EM Pulse Gun EM Pulse Gun Peak State ------------ > --- POWER ------------ Ion Engine > --- PROPULSION ------- Wheel Wheel > --- UTILITY ---------- Small Storage Unit Improved Terrain Scanner > --- WEAPON ----------- EM Pulse Gun EM Pulse Gun > --- INVENTORY -------- Wheel Wheel Large Matter Pod EM Pulse Gun EM Pulse Gun EM Pulse Gun EM Pulse Gun [Rating: 9] Favorites ----------- Power Ion Engine Engine Ion Engine Propulsion Wheel Wheel Wheel Utility Small Storage Unit Device ECM Suite Storage Small Storage Unit Weapon EM Pulse Gun Energy Gun EM Pulse Gun Ballistic Gun Light Assault Rifle Build | -11 -10 -10 -10 -9 ------- Run | Yrd Mat Min Exi Min Slots Evolved . | . . . . . Power . | . . . . . Propulsion . | . . . . . Utility . | . . . . . Weapon . | . . . . . Parts Attached 15 | 6 3 3 3 . Power 1 | 1 . . . . Engine 1 | 1 . . . . Core . | . . . . . Reactor . | . . . . . Propulsion 4 | 2 . 2 . . Treads . | . . . . . Leg . | . . . . . Wheel 4 | 2 . 2 . . Hover . | . . . . . Flight . | . . . . . Utility 3 | 1 1 . 1 . Device 2 | . 1 . 1 . Storage 1 | 1 . . . . Processor . | . . . . . Hackware . | . . . . . Protection . | . . . . . Artifact . | . . . . . Weapon 7 | 2 2 1 2 . Energy Gun 5 | . 2 1 2 . Energy Cannon . | . . . . . Ballistic Gun 2 | 2 . . . . Ballistic Cannon . | . . . . . Launcher . | . . . . . Special Weapon . | . . . . . Impact Weapon . | . . . . . Slashing Weapon . | . . . . . Piercing Weapon . | . . . . . Special Melee Weapon . | . . . . . Unidentified Prototypes . | . . . . . Parts Lost 3 | . 1 2 . . Power . | . . . . . Propulsion 1 | . 1 . . . Utility 1 | . . 1 . . Weapon 1 | . . 1 . . Highest Loss Streak 2 | . 1 2 . . To Critical Strikes . | . . . . . Average Backups 6 | . 4 6 7 . Power . | . . . . . Propulsion . | . . . 2 . Utility 1 | . . 1 1 . Weapon 4 | . 4 4 4 . Tool/Special . | . . . . . Unused Backups 5 | . . . . 5 Power . | . . . . . Propulsion 2 | . . . . 2 Utility 1 | . . . . 1 Weapon 2 | . . . . 2 Tool/Special . | . . . . . Average Slot Usage (%) 85 | . 82 84 89 . Engine 14 | . 14 14 14 . Wheel 21 | . 19 18 28 . Device 7 | . 6 9 3 . Storage 14 | . 14 14 14 . Energy Gun 27 | . 24 27 28 . Peak Build Rating 9 | 6 6 7 9 . Average Rating 6 | 4 5 6 7 . On Entrance 5 | . 6 6 7 9 Avg Prop Armor Cover (%) 5 | . . 5 . . Naked Turns . | . . . . . Heaviest Build 16 | 13 16 16 15 . Greatest Support 20 | 20 20 20 20 . Greatest Overweight (x) 1 | . 1 1 . . Average Overweight (x) . | . . . . . Largest Inventory Capacity 8 | 8 8 8 8 . Average Capacity 7 | 7 8 8 8 . Most Carried 8 | . 6 8 8 . Average Carried 6 | . 4 6 7 . Final Capacity 8 | 8 8 8 8 8 Final Carried 8 | . 6 8 7 7 Class Distribution -------------------- 100% | Mutant Dominant Class ---------------- Mutant | -10/Materials Mutant | -10/Mines Mutant | -10/Exiles Mutant | -9/Mines Resources | -11 -10 -10 -10 -9 ----------- Run | Yrd Mat Min Exi Min Matter Collected 478 | 217 160 101 . . Remotely . | . . . . . Salvage Created 351 | . 265 86 . . Parts 9 | . 8 1 . . Haulers Intercepted 1 | . 1 . . . Recyclers Shooed 1 | . 1 . . . Parts Field Recycled . | . . . . . Retrieved Matter . | . . . . . Parts Self-Destructed . | . . . . . Prevented . | . . . . . Parts Restored . | . . . . . Kills | -11 -10 -10 -10 -9 ------- Run | Yrd Mat Min Exi Min Combat Hostiles Destroyed 9 | . 4 5 . . Guns 7 | . 2 5 . . AOE 2 | . 2 . . . Classes Destroyed 5 | . 3 2 . . Worker 1 | . 1 . . . Hauler 1 | . 1 . . . Swarmer 1 | . . 1 . . Grunt 4 | . 4 . . . Assembled 4 | . . 4 . . Best Kill Streak 5 | . 5 2 . . Combat Bots Only 4 | . 4 2 . . Max Kills in Single Turn 2 | . 2 1 . . Gunslinging . | . . . . . Exploded 1 | . 1 . . . Melee . | . . . . . Uniques/NPCs Destroyed . | . . . . . Combat | -11 -10 -10 -10 -9 -------- Run | Yrd Mat Min Exi Min Hostile Shots Fired 21 | . 6 15 . . Missed 7 | . 2 5 . . Hits 14 | . 4 10 . . Melee 2 | . . 2 . . Projectile 12 | . 4 8 . . Part Disruptions 1 | . . 1 . . Damage Taken 291 | . 88 203 . . Core 59 | . . 59 . . Absorbed by Shields . | . . . . . Core Remaining (%) 100 | 100 . . . . Volleys Fired 31 | . 15 16 . . Largest 2 | . 2 2 . . Hottest 80 | . 80 80 . . Shots Fired 61 | . 30 31 . . Gun 61 | . 30 31 . . Cannon . | . . . . . Launcher . | . . . . . Special . | . . . . . Kinetic . | . . . . . Thermal . | . . . . . Explosive . | . . . . . Electromagnetic 61 | . 30 31 . . Robot Hit Streak 7 | . 7 5 . . Robot Miss Streak 4 | . 4 2 . . Penetration Max . | . . . . . Secondary Targets 1 | . . 1 . . Max Gunslinging Chain 1 | . . 1 . . Shots Hit Robots 38 | . 20 18 . . Core Hits 18 | . 9 9 . . Critical Kills . | . . . . . Critical Parts Destroyed . | . . . . . Critical Strikes 1 | . 1 . . . Corrupt 1 | . 1 . . . Melee Attacks . | . . . . . Impact . | . . . . . Slashing . | . . . . . Piercing . | . . . . . Sneak Attacks . | . . . . . Combat Hostiles . | . . . . . Follow-up Attacks . | . . . . . Damage Inflicted 697 | . 487 210 . . Guns 515 | . 305 210 . . Cannons . | . . . . . Explosions 182 | . 182 . . . Melee . | . . . . . Ramming . | . . . . . Kinetic . | . . . . . Thermal 182 | . 182 . . . Explosive . | . . . . . Electromagnetic 515 | . 305 210 . . Impact . | . . . . . Slashing . | . . . . . Piercing . | . . . . . Highest Corruption 2 | . . 2 2 . Average Corruption 2 | . . 2 2 . Corruption Purged . | . . . . . Corruption Blocked . | . . . . . Effects 6 | . . 3 3 . Message Errors 2 | . . . 2 . Matter Fused 1 | . . . 1 . Energy Discharges 1 | . . 1 . . Data Loss (minor) 2 | . . 2 . . Overload Shots . | . . . . . Overflow Damage 11 | . 11 . . . Projectiles . | . . . . . Explosions 11 | . 11 . . . Melee . | . . . . . Knockbacks . | . . . . . Impact . | . . . . . Kinetic . | . . . . . Secondary . | . . . . . Self-Inflicted Damage 39 | . 39 . . . Shots 1 | . 1 . . . Rammed . | . . . . . Targets Rammed . | . . . . . Kicked . | . . . . . Crushed . | . . . . . Highest Temperature 120 | . 120 74 . . Average Temperature 37 | . 45 28 . . Received Heat Transfer 97 | . 30 67 . . Siege Activations . | . . . . . Martial Activations . | . . . . . Shielding Activations . | . . . . . Robots Disrupted . | . . . . . Combat Hostiles . | . . . . . Robots Corrupted 1 | . 1 . . . Combat Hostiles . | . . . . . Parts Fried . | . . . . . Impact Corruptions . | . . . . . Robots Melted . | . . . . . Combat Hostiles . | . . . . . Parts Melted . | . . . . . Heat Transferred 300 | . 300 . . . Parts Sabotaged . | . . . . . Parts Stolen . | . . . . . Parts Stripped . | . . . . . Power Chain Reactions 3 | . 3 . . . Alert | -11 -10 -10 -10 -9 ------- Run | Yrd Mat Min Exi Min Maximum Alert Level . | . . . . . Low Security (%) 100 | 100 100 100 . . Level 1 . | . . . . . Level 2 . | . . . . . Level 3 . | . . . . . Level 4 . | . . . . . Level 5 . | . . . . . High Security . | . . . . . Max Security . | . . . . . Peak Influence 95 | . 95 73 . . Initial . | . . . . . Average 12 | . 36 3 . . Influence Increases 199 | . 118 81 . . Destroy 0b10 Robot/C 140 | . 80 60 . . Destroy 0b10 Robot/NC 10 | . 10 . . . Destroy Leader 22 | . 12 10 . . Allied During Kill 11 | . . 11 . . Destroy Structure 16 | . 16 . . . Influence Decreases 199 | . 118 16 65 . Entered New Map 65 | . . . 65 . Time Decay 124 | . 108 16 . . Lost Part 10 | . 10 . . . Squads Dispatched . | . . . . . Investigation . | . . . . . Extermination . | . . . . . Reinforcement . | . . . . . Assault . | . . . . . Garrison . | . . . . . Intercept . | . . . . . Searches Triggered . | . . . . . Construction Impeded . | . . . . . Haulers Reinforced . | . . . . . Active Scanning Responses . | . . . . . Cargo Convoy Interrupts . | . . . . . Stealth | -11 -10 -10 -10 -9 --------- Run | Yrd Mat Min Exi Min Distress Signals . | . . . . . Communications Jammed . | . . . . . Distress Signals . | . . . . . Times Spotted 21 | . 9 12 . . Peak Tracking Total 6 | . 6 3 . . Tactical Retreats 2 | . . 2 . . Traps | -11 -10 -10 -10 -9 ------- Run | Yrd Mat Min Exi Min Traps Triggered . | . . . . . Indirectly . | . . . . . Trap Hack Attempts . | . . . . . Triggered . | . . . . . Disarmed . | . . . . . Reprogrammed . | . . . . . Reused . | . . . . . Traps Extracted . | . . . . . Installed . | . . . . . Triggered . | . . . . . Machines | -11 -10 -10 -10 -9 ---------- Run | Yrd Mat Min Exi Min Machines Disabled . | . . . . . Max in Single Turn . | . . . . . Machines Repaired . | . . . . . Machines Dismantled . | . . . . . Machines Sabotaged . | . . . . . Overloaded Fab Kills . | . . . . . Hacking | -11 -10 -10 -10 -9 --------- Run | Yrd Mat Min Exi Min Machines Accessed 1 | . . . 1 . Terminals . | . . . . . Fabricators . | . . . . . Repair Stations . | . . . . . Recycling Units . | . . . . . Scanalyzers . | . . . . . Garrison Access . | . . . . . Total Hacks 12 | . . . 12 . Successful 12 | . . . 12 . Failed . | . . . . . Catastrophic . | . . . . . Database Lockouts . | . . . . . Manual . | . . . . . Terminals . | . . . . . Fabricators . | . . . . . Repair Stations . | . . . . . Recycling Units . | . . . . . Scanalyzers . | . . . . . Garrison Access . | . . . . . Terminal Hacks 12 | . . . 12 . Record 12 | . . . 12 . Fabricator Hacks . | . . . . . Repair Station Hacks . | . . . . . Recycling Unit Hacks . | . . . . . Scanalyzer . | . . . . . Garrison Access Hacks . | . . . . . Unauthorized Hacks . | . . . . . Terminals . | . . . . . Fabricators . | . . . . . Repair Stations . | . . . . . Recycling Units . | . . . . . Scanalyzers . | . . . . . Garrison Access . | . . . . . Data Cores Recovered . | . . . . . Used . | . . . . . Hacking Detections . | . . . . . Full Trace Events . | . . . . . Feedback Events . | . . . . . Feedback Blocked . | . . . . . Robot Schematics Acquired . | . . . . . Robots Built . | . . . . . Authchips . | . . . . . Time . | . . . . . Total Robot Build Rating . | . . . . . Part Schematics Acquired . | . . . . . Parts Built . | . . . . . Authchips . | . . . . . Time . | . . . . . Total Part Build Rating . | . . . . . Part Studies Acquired . | . . . . . Parts Repaired . | . . . . . Time . | . . . . . Parts Recycled . | . . . . . Recycled Matter . | . . . . . Retrieved Matter . | . . . . . Retrieved Components . | . . . . . Parts Scanalyzed . | . . . . . Part Schematics Acquired . | . . . . . Parts Damaged . | . . . . . Bothacking | -11 -10 -10 -10 -9 ------------ Run | Yrd Mat Min Exi Min Used RIF Installer . | . . . . . Robots Hacked . | . . . . . Non-combat . | . . . . . Combat . | . . . . . Robot Hacks Applied . | . . . . . Relay Couplers Released . | . . . . . Fabnet Peak Effective % . | . . . . . Robots Rewired . | . . . . . Allies Hacked . | . . . . . Hacks Repelled . | . . . . . Allies | -11 -10 -10 -10 -9 -------- Run | Yrd Mat Min Exi Min Total Allies 3 | . . 3 . . Largest Group 3 | . . 3 3 . Highest-Rated Group 40 | . . 40 40 . Highest-Rated Ally 16 | . . 16 16 . Total Orders . | . . . . . Ally Attacks 7 | . . 7 . . Total Damage 98 | . . 98 . . Kills 3 | . . 3 . . Allies Corrupted . | . . . . . Allies Melted . | . . . . . Intel | -11 -10 -10 -10 -9 ------- Run | Yrd Mat Min Exi Min Active Infowar (turns) 701 | . 139 460 102 . Terrain 102 | . . . 102 . ECM 599 | . 139 460 . . Robot Analysis Total . | . . . . . Derelict Logs Recovered 1 | . . 1 . . Drone Launches . | . . . . . Drone Recoveries . | . . . . . Exploration | -11 -10 -10 -10 -9 ------------- Run | Yrd Mat Min Exi Min Turns Passed 1377 | 43 290 693 351 . Spaces Moved 1153 | 45 253 459 396 . Core 5 | 5 . . . . Treads . | . . . . . Legs . | . . . . . Wheels 1148 | 40 253 459 396 . Hover . | . . . . . Flight . | . . . . . Fastest Speed 50 | 50 80 80 80 . Average Speed 86 | 76 90 91 80 . Slowest Speed 95 | 80 95 95 80 . Overloaded Moves . | . . . . . Propulsion Burnouts . | . . . . . Robots Hopped . | . . . . . Potential Cave-ins . | . . . . . Cave-ins Triggered . | . . . . . Exploration Rate (%) 40 | 3 50 62 86 2 Regions Visited 4 Branch Regions 3 Pre-discovered Areas 1 | . . . 1 . Known Exits Taken . | . . . . . Unknown Exits Taken 4 | 1 1 1 1 . Scrap Searched . | . . . . . Spaces Dug . | . . . . . Terrain Destroyed 15 | . 15 . . . Melee . | . . . . . Projectile . | . . . . . AOE 15 | . 15 . . . Terrain Rammed . | . . . . . Walls Destroyed . | . . . . . Machines Disabled . | . . . . . Actions | -11 -10 -10 -10 -9 --------- Run | Yrd Mat Min Exi Min Total 1464 | 50 284 702 428 . Wait 253 | . 2 221 30 . Move 1149 | 44 252 458 395 . Hop . | . . . . . Pick Up 12 | . 9 3 . . Fast Attach 7 | 6 . 1 . . Attach 3 | . 1 1 1 . Detach . | . . . . . Swap 6 | . 3 1 2 . Drop 3 | . 2 1 . . Fire 31 | . 15 16 . . Melee . | . . . . . Ram . | . . . . . Kick . | . . . . . Crush . | . . . . . Escape Stasis . | . . . . . Rewire . | . . . . . Trap . | . . . . . Miscellaneous . | . . . . . Route ------- -11/Scrapyard -10/Materials (discovered 2 exits: [*Mat] / [*Min]) -10/Mines (discovered 4 exits: [*Mat x2] / *Exi / [*Sub]) -10/Exiles -9/Mines History --------- Turn | Location | Event 3 | -11/Scrapyard | Discovered new exit (range 15) 44 | -11/Scrapyard | Entered Materials 179 | -10/Materials | Discovered new exit (range 6) 311 | -10/Materials | Build established: Mutant 323 | -10/Materials | Discovered new exit (range 12) 334 | -10/Materials | Entered Mines 349 | -10/Mines | Met a Derelict bent on vengeance 380 | -10/Mines | Assembled infested the area 385 | -10/Mines | Assisted by a Guerilla fighting off Assembled 446 | -10/Mines | Discovered new exit (range 11) 633 | -10/Mines | Learned Materials machine intel 756 | -10/Mines | Discovered new exit (range 7) 843 | -10/Mines | Assisted by bots powering up and referring to "LRC-V3" 989 | -10/Mines | Discovered new exit (range 8) 1007 | -10/Mines | Deemed a non-threat by the Exiles lab entrance 1007 | -10/Mines | Discovered new exit (range 5) 1027 | -10/Mines | Entered Exiles 1027 | -10/Exiles | Accompanied by 3 allies 1048 | -10/Exiles | Met 8R-AWN 1063 | -10/Exiles | Met EX-HEX 1086 | -10/Exiles | Met EX-BIN 1117 | -10/Exiles | Met EX-DEC 1120 | -10/Exiles | Learned location of Zion (-6) 1153 | -10/Exiles | Visited The Gauntlet 1349 | -10/Exiles | Discovered new exit (range 14) 1378 | -10/Exiles | Entered Mines 1378 | -9/Mines | Accompanied by 3 allies 1378 | -9/Mines | Self-destructed Last Messages --------------- 01314_ Connecting with EX-Message Board... >>Record "MSG004474-01" The Merchants threatened to send a debt collector if we don't pay up for the last shipment. Did someone not pay them in full, or are we getting on their bad side for some reason? We don't want to be on their bad side. >>Record "MSG001904-02" More like hollow myth, haha! --DEC >>Record "MSG002145-01" An 0b10 database recorded a lone Knight exploring the Mines not too long ago. If anyone sees one of Warlord's units down here tell them to swing by our lab real quick. We need to have a talk with them about steering clear of our depth to avoid stirring up trouble. --HEX >>Record "MSG002601-01" DEC needs seven Point Singularity Launchers and won't tell me why. Can someone fill me in on this? --HEX 01349_ EXIT=FOUND LOCATION=UNKNOWN GOAL=ESCAPE Map ----- +----------------------------------------------------+ | | | | | | | | | | | | | | | | | | | ???????????????????????????????? | | ???????????????????????????????? | | ???????????????????????????????? | | ???????????????????????????????? | | ???????????????????????????????? | | ???????????????????????????????? | | ???????????????????????????????? | | ???????????????????????????????? | | ???????????????????????????????? | | ???????????????????????????????? | | ???????????????????????????????? | | ???????????????????????????????? | | ???????????????????????????????? | | ???????????????????????????????? | | ????????????????????????####???? | | ?????????????????????#### ##??? | | ?????????????????????# @g #??? | | ????????????????????# g #??? | | ????????????????????# g ##??? | | ????????????????????# ###???? | | ????????????????????## ??????? | | ?????????????????????## ??????? | | ??????????????????????# ??????? | | ??????????????????????# ??????? | | ??????????????????????# ??????? | | ?????????????????????? ???????? | | ?????????????????????? ???????? | | ??????????????????????##???????? | | ???????????????????????????????? | | ???????????????????????????????? | | ???????????????????????????????? | | ???????????????????????????????? | | ???????????????????????????????? | | ???????????????????????????????? | | ???????????????????????????????? | | ???????????????????????????????? | | ???????????????????????????????? | | ???????????????????????????????? | | ???????????????????????????????? | | ???????????????????????????????? | | ???????????????????????????????? | +----------------------------------------------------+ Best States ------------- Heat Dissipation 25 Energy Generation 10 Energy Capacity 250 Matter Stores 300 Matter Capacity 300 Sight Range 16 Terrain Scan Range 16 Terrain Scan Density 10 ECM Strength 1 Evasion (%) 44 Item Schematics ----------------- None Robot Schematics ------------------ None Fabricated ------------ Nothing Repaired ---------- Nothing Studied --------- None Alien Tech Used ----------------- None Achievements -------------- None Challenges ------------ None Game ------ Seed PotentialIonicFemtoactuators Manual? 0 Play Time 00:11:37 Cumulative 211.5 hours Start 2026.06.25 @ 22:01:21 End 2026.06.26 @ 08:17:37 Sessions 3 Manual Loads 0 Difficulty Rogue Special Mode None Game No. 355 Rogue 355 Adventurer 0 Explorer 0 Win Type - Total 2 Types 2/0/0/0/0/0/0/0/0/0 Lore% 62 Gallery% 60 Achievement% 47 Wizard Run 0 Options --------- Layout 2 ASCII 0 Keyboard 0 Movement Numpad Keybinds 0 Fullscreen 1 Font 20/SmallcapsGlow Map View 64x51 Zoom Use 0% Tactical HUD 1 Map Filters NONE Filters NONE Steam 1 RUN: f2928e62-e023-48fc-bfd8-d10cddb2fa30